[Event "XVII Profigaia Open 2017"]
[Site "Gaia"]
[Date "2017.06.17"]
[Round "5"]
[White "Clemente, António Manuel"]
[Black "Silva, Pedro Gil Ferreira "]
[Result "0-1"]
[ECO "C68"]
[WhiteElo "1393"]
[BlackElo "1592"]
[Annotator "NA RC"]
[PlyCount "98"]
[EventDate "2017.??.??"]
[EventType "swiss"]
[EventCountry "POR"]
[SourceTitle "playchess.com"]
[Source "ChessBase"]
[SourceQuality "1"]
[TimeControl "5400+30"]

1. e4 {[%emt 0:00:00]} e5 {[%emt 0:00:57]} 2. Nf3 {[%emt 0:00:00]} Nc6 {[%emt 0:01:30]} 3. Bb5 {[%emt 0:00:45]} a6 {[%emt 0:01:20]} 4. Bxc6 {[%emt 0:01:39]} dxc6 {[%emt 0:00:47]} 5. O-O {[%emt 0:00:56]} f6 {[%emt 0:01:43]} 6. d4 {[%emt 0:00:45]} exd4 {[%emt 0:02:37]} 7. Qxd4 {[%emt 0:00:57]} Qxd4 {[%emt 0:00:27]} 8. Nxd4 {[%emt 0:00:15]} c5 {[%emt 0:01:10]} 9. Ne2 {[%emt 0:00:27]} Be6 {[%emt 0:00:35]} 10. Rd1 {[%emt 0:06:12]} Bd6 {[%emt 0:15:08]} 11. Nbc3 {[%emt 0:12:48]} O-O-O {[%emt 0:18:15]} 12. Bf4 {[%emt 0:07:48]} Be7 {[%emt 0:08:06]} 13. h3 {[%emt 0:04:47]} Rxd1+ {[%emt 0:07:42]} 14. Rxd1 {[%emt 0:01:03]} h5 {[%emt 0:04:16]} 15. b3 {[%emt 0:11:22]} g5 {[%emt 0:01:04]} 16. Bh2 {[%emt 0:00:58]} Nh6 {[%emt 0:01:32]} 17. f3 {[%emt 0:03:27]} c4 {[%emt 0:03:31]} 18. Nd5 {[%emt 0:01:32]} Bc5+ {[%emt 0:00:14]} 19. Kf1 {[%emt 0:01:40]} Rd8 {[%emt 0:00:40]} 20. Ndc3 {[%emt 0:00:21]} Rxd1+ {[%emt 0:00:42]} 21. Nxd1 {[%emt 0:00:21]} f5 {[%emt 0:04:19]} 22. Bg1 {[%emt 0:01:34]} Bxg1 {[%emt 0:00:58]} 23. Kxg1 {[%emt 0:00:06]} Kd7 {[%emt 0:00:39]} 24. Nd4 {[%emt 0:00:42]} c5 {[%emt 0:00:20]} 25. Nxe6 {[%emt 0:00:27]} Kxe6 {[%emt 0:00:06]} 26. exf5+ {[%emt 0:00:36]} Nxf5 {[%emt 0:00:06]} 27. Kf2 {[%emt 0:00:43]} cxb3 {[%emt 0:00:11]} 28. cxb3 {[%emt 0:02:49]} b5 {[%emt 0:01:43]} 29. Ne3 {[%emt 0:02:03]} Nxe3 {[%emt 0:01:46]} 30. Kxe3 {[%emt 0:00:19]} Ke5 {[%emt 0:00:26]} 31. g3 {[%emt 0:00:28]} h4 {[%emt 0:00:29]} 32. gxh4 {[%emt 0:07:14]} gxh4 {[%emt 0:00:24]} 33. a3 {[%emt 0:02:18]} a5 {[%emt 0:00:52]} 34. f4+ {[%emt 0:00:53]} Kf5 {[%emt 0:00:12]} 35. Kf3 {[%emt 0:01:04]} a4 {[%emt 0:00:24]} 36. bxa4 {[%emt 0:00:28]} bxa4 {[%emt 0:00:03]} 37. Ke3 {[%emt 0:01:18]} c4 {[%emt 0:00:08]} 38. Kd4 {[%emt 0:00:27]} Kxf4 {[%emt 0:00:06]} 39. Kxc4 Kg3 40. Kb4 {[%emt 0:01:01]} Kxh3 {[%emt 0:00:37]} 41. Kxa4 {[%emt 0:00:25]} Kg3 {[%emt 0:00:06]} 42. Kb5 {[%emt 0:00:22]} h3 {[%emt 0:00:10]} 43. a4 {[%emt 0:00:33]} h2 {[%emt 0:00:04]} 44. a5 {[%emt 0:00:14]} h1=Q {[%emt 0:00:07]} 45. a6 {[%emt 0:00:24]} Qa8 {[%emt 0:00:22]} 46. Kb6 {[%emt 0:00:16]} Kf4 {[%emt 0:00:09]} 47. a7 {[%emt 0:01:01]} Ke5 {[%emt 0:00:05]} 48. Ka6 {[%emt 0:00:36]} Qc6+ {[%emt 0:00:15]} 49. Ka5 {[%emt 0:00:44]} Qb7 {[%emt 0:00:05]} 0-1

[Event "XVII Profigaia Open 2017"]
[Site "Gaia"]
[Date "2017.06.17"]
[Round "5"]
[White "Marrios, Ruben"]
[Black "Silva, Joao Miguel Carvalh"]
[Result "1-0"]
[ECO "D35"]
[WhiteElo "1315"]
[BlackElo "1502"]
[Annotator "NA RC"]
[PlyCount "91"]
[EventDate "2017.??.??"]
[EventType "swiss"]
[EventCountry "POR"]
[SourceTitle "playchess.com"]
[Source "ChessBase"]
[SourceQuality "1"]
[TimeControl "5400+30"]

1. d4 {[%emt 0:00:00]} d5 {[%emt 0:00:59]} 2. c4 {[%emt 0:00:00]} Nf6 {[%emt 0:00:20]} 3. Nc3 {[%emt 0:00:16]} e6 {[%emt 0:00:44]} 4. e3 {[%emt 0:00:09]} Bb4 {[%emt 0:00:27]} 5. Bd3 {[%emt 0:00:38]} O-O {[%emt 0:00:30]} 6. Nge2 {[%emt 0:01:05]} b6 {[%emt 0:01:24]} 7. a3 {[%emt 0:00:09]} Bxc3+ {[%emt 0:00:09]} 8. Nxc3 {[%emt 0:00:23]} Bb7 {[%emt 0:00:53]} 9. O-O {[%emt 0:00:57]} c5 {[%emt 0:05:19]} 10. cxd5 {[%emt 0:00:49]} exd5 {[%emt 0:00:44]} 11. Ne2 {[%emt 0:00:52]} Ng4 {[%emt 0:01:55]} 12. Qc2 {[%emt 0:00:44]} Qh4 {[%emt 0:00:32]} 13. h3 {[%emt 0:00:39]} c4 {[%emt 0:01:23]} 14. Bxh7+ {[%emt 0:00:22]} Qxh7 {[%emt 0:00:24]} 15. Qxh7+ {[%emt 0:00:11]} Kxh7 {[%emt 0:00:13]} 16. hxg4 {[%emt 0:00:05]} Ba6 {[%emt 0:00:35]} 17. Nc3 {[%emt 0:00:33]} Rd8 {[%emt 0:01:01]} 18. Re1 {[%emt 0:00:17]} Bc8 {[%emt 0:00:31]} 19. f3 {[%emt 0:00:28]} Nc6 {[%emt 0:01:23]} 20. Bd2 {[%emt 0:00:40]} Ne7 {[%emt 0:00:29]} 21. Kf2 {[%emt 0:01:09]} Kg6 {[%emt 0:04:49]} 22. e4 {[%emt 0:02:05]} f6 {[%emt 0:02:07]} 23. e5 {[%emt 0:01:15]} Nc6 {[%emt 0:00:52]} 24. exf6 {[%emt 0:01:00]} Kxf6 {[%emt 0:00:34]} 25. Be3 {[%emt 0:00:18]} Rf8 {[%emt 0:01:44]} 26. Nxd5+ {[%emt 0:00:46]} Kg6 {[%emt 0:00:49]} 27. Kg3 {[%emt 0:01:20]} Be6 {[%emt 0:02:22]} 28. Nc7 {[%emt 0:00:36]} Bg8 {[%emt 0:02:19]} 29. Nxa8 {[%emt 0:00:15]} Rxa8 {[%emt 0:00:09]} 30. Rad1 {[%emt 0:00:41]} Ne7 {[%emt 0:01:14]} 31. f4 {[%emt 0:00:42]} Rf8 {[%emt 0:07:15]} 32. f5+ {[%emt 0:00:25]} Kf7 {[%emt 0:00:35]} 33. Bg5 {[%emt 0:00:25]} Nd5 {[%emt 0:01:11]} 34. Re5 {[%emt 0:00:17]} Nf6 {[%emt 0:00:27]} 35. d5 {[%emt 0:00:29]} Rd8 {[%emt 0:00:40]} 36. d6 {[%emt 0:00:20]} Bh7 {[%emt 0:01:39]} 37. Re7+ {[%emt 0:00:17]} Kg8 {[%emt 0:00:14]} 38. Bxf6 {[%emt 0:00:12]} gxf6 {[%emt 0:00:11]} 39. d7 {[%emt 0:00:07]} Kf8 {[%emt 0:01:34]} 40. Rxh7 {[%emt 0:00:12]} Kg8 {[%emt 0:00:21]} 41. Re7 {[%emt 0:00:20]} Kf8 {[%emt 0:00:10]} 42. Re8+ {[%emt 0:00:06]} Rxe8 {[%emt 0:00:25]} 43. dxe8=Q+ Kxe8 {[%emt 0:00:24]} 44. Kf4 {[%emt 0:00:23]} Kf7 {[%emt 0:00:14]} 45. g5 {[%emt 0:00:07]} fxg5+ {[%emt 0:00:04]} 46. Kxg5 {[%emt 0:00:08]} 1-0

[Event "XVII Profigaia Open 2017"]
[Site "Gaia"]
[Date "2017.06.17"]
[Round "5"]
[White "Triunfante, Armando"]
[Black "Sa, Luis Afonso"]
[Result "0-1"]
[ECO "B20"]
[WhiteElo "1231"]
[BlackElo "1537"]
[Annotator "NA RC"]
[PlyCount "74"]
[EventDate "2017.??.??"]
[EventType "swiss"]
[EventCountry "POR"]
[SourceTitle "playchess.com"]
[Source "ChessBase"]
[SourceQuality "1"]
[TimeControl "5400+30"]

1. e4 {[%emt 0:00:00]} c5 {[%emt 0:00:06]} 2. Bc4 {[%emt 0:00:00]} Nc6 {[%emt 0:00:08]} 3. Nf3 {[%emt 0:01:50]} g6 {[%emt 0:00:11]} 4. O-O {[%emt 0:01:11]} Bg7 {[%emt 0:00:07]} 5. c3 {[%emt 0:00:51]} d6 {[%emt 0:04:54]} 6. h3 {[%emt 0:00:37]} Nf6 {[%emt 0:00:15]} 7. Re1 {[%emt 0:00:47]} O-O {[%emt 0:00:22]} 8. d4 {[%emt 0:00:22]} cxd4 {[%emt 0:01:01]} 9. cxd4 {[%emt 0:00:40]} Nd7 {[%emt 0:05:39]} 10. Nc3 {[%emt 0:02:53]} Nb6 {[%emt 0:00:39]} 11. Bb3 {[%emt 0:01:59]} Bd7 {[%emt 0:00:20]} 12. Bg5 {[%emt 0:07:08]} Na5 {[%emt 0:03:16]} 13. Rc1 {[%emt 0:05:36]} Rc8 {[%emt 0:02:35]} 14. e5 {[%emt 0:07:40]} dxe5 {[%emt 0:03:56]} 15. Nxe5 {[%emt 0:01:06]} Nxb3 {[%emt 0:00:25]} 16. Nxd7 {[%emt 0:15:52]} Nxc1 {[%emt 0:05:56]} 17. Nxf8 {[%emt 0:02:12]} Bxf8 {[%emt 0:00:35]} 18. Bxc1 {[%emt 0:01:36]} e6 {[%emt 0:00:20]} 19. Be3 {[%emt 0:03:34]} Bg7 {[%emt 0:00:17]} 20. Qd2 {[%emt 0:04:35]} Nc4 {[%emt 0:00:29]} 21. Qc1 {[%emt 0:01:06]} Bxd4 {[%emt 0:03:41]} 22. Rd1 {[%emt 0:02:33]} e5 {[%emt 0:00:08]} 23. b3 {[%emt 0:01:26]} Nxe3 {[%emt 0:00:32]} 24. fxe3 {[%emt 0:02:24]} Rxc3 {[%emt 0:00:15]} 25. Qxc3 {[%emt 0:01:24]} Bxe3+ {[%emt 0:00:19]} 26. Kh2 {[%emt 0:02:38]} Qxd1 {[%emt 0:01:27]} 27. Qxe3 {[%emt 0:00:18]} Qd4 {[%emt 0:00:09]} 28. Qxd4 {[%emt 0:03:07]} exd4 {[%emt 0:00:08]} 29. Kg3 {[%emt 0:00:15]} Kg7 {[%emt 0:00:15]} 30. Kf3 {[%emt 0:00:06]} Kf6 {[%emt 0:00:14]} 31. Ke4 {[%emt 0:00:24]} d3 {[%emt 0:00:19]} 32. Kxd3 {[%emt 0:00:03]} Ke5 {[%emt 0:00:15]} 33. a4 {[%emt 0:01:35]} Kf4 {[%emt 0:00:56]} 34. Kc4 {[%emt 0:02:28]} Kg3 {[%emt 0:00:08]} 35. Kc5 {[%emt 0:01:01]} Kxg2 {[%emt 0:00:10]} 36. Kd6 {[%emt 0:00:04]} f5 {[%emt 0:00:21]} 37. Ke5 {[%emt 0:01:05]} Kg3 {[%emt 0:00:11]} 0-1

[Event "XVII Profigaia Open 2017"]
[Site "Gaia"]
[Date "2017.06.17"]
[Round "5"]
[White "Filipe, Guilherme Castro"]
[Black "Alves, Damiao Fernando"]
[Result "0-1"]
[ECO "C92"]
[WhiteElo "1145"]
[BlackElo "1368"]
[Annotator "NA RC"]
[PlyCount "62"]
[EventDate "2017.??.??"]
[EventType "swiss"]
[EventCountry "POR"]
[SourceTitle "playchess.com"]
[Source "ChessBase"]
[SourceQuality "1"]
[TimeControl "5400+30"]

1. e4 {[%emt 0:00:00]} e5 {[%emt 0:00:11]} 2. Nf3 {[%emt 0:00:00]} Nc6 {[%emt 0:00:05]} 3. Bb5 {[%emt 0:00:00]} a6 {[%emt 0:01:08]} 4. Ba4 {[%emt 0:00:38]} Nf6 {[%emt 0:00:04]} 5. O-O {[%emt 0:00:11]} Be7 {[%emt 0:00:26]} 6. Re1 {[%emt 0:00:10]} b5 {[%emt 0:00:46]} 7. Bb3 O-O 8. h3 {[%emt 0:01:41]} d6 {[%emt 0:00:53]} 9. c3 {[%emt 0:00:08]} Re8 {[%emt 0:01:26]} 10. d4 {[%emt 0:00:19]} h6 {[%emt 0:04:31]} 11. Nbd2 {[%emt 0:01:29]} exd4 {[%emt 0:01:19]} 12. cxd4 {[%emt 0:00:17]} Na5 {[%emt 0:01:32]} 13. Bc2 {[%emt 0:00:17]} c5 {[%emt 0:00:22]} 14. Nf1 {[%emt 0:00:32]} Bf8 {[%emt 0:02:37]} 15. Ng3 {[%emt 0:00:32]} g6 {[%emt 0:00:35]} 16. Qd3 {[%emt 0:06:19]} c4 {[%emt 0:09:04]} 17. Qd2 Nc6 18. d5 {[%emt 0:05:59]} Ne5 {[%emt 0:01:13]} 19. Qc3 {[%emt 0:01:40]} Bg7 {[%emt 0:01:32]} 20. Bf4 {[%emt 0:00:25]} Nfd7 {[%emt 0:01:53]} 21. Qd2 {[%emt 0:00:58]} Kh7 {[%emt 0:04:28]} 22. Nd4 {[%emt 0:04:01]} Bb7 {[%emt 0:06:20]} 23. Qb4 {[%emt 0:10:39]} Nc5 {[%emt 0:03:05]} 24. Rad1 {[%emt 0:01:16]} Ncd3 {[%emt 0:06:47]} 25. Bxd3 {[%emt 0:00:51]} Nxd3 {[%emt 0:00:09]} 26. Rxd3 {[%emt 0:00:22]} cxd3 {[%emt 0:01:04]} 27. Bxd6 {[%emt 0:00:12]} Bxd4 {[%emt 0:03:07]} 28. Qxd4 {[%emt 0:00:06]} Qxd6 {[%emt 0:00:22]} 29. a3 {[%emt 0:00:16]} Bxd5 {[%emt 0:02:24]} 30. Qxd5 {[%emt 0:00:14]} Qxd5 {[%emt 0:00:11]} 31. exd5 {[%emt 0:00:07]} Rxe1+ {[%emt 0:00:10]} 0-1

[Event "XVII Profigaia Open 2017"]
[Site "Gaia"]
[Date "2017.06.17"]
[Round "5"]
[White "Oliveira, Maria Elisa Ramos M"]
[Black "Pedroso, Manuel"]
[Result "1-0"]
[ECO "B13"]
[WhiteElo "1137"]
[BlackElo "1285"]
[Annotator "NA RC"]
[PlyCount "69"]
[EventDate "2017.??.??"]
[EventType "swiss"]
[EventCountry "POR"]
[SourceTitle "playchess.com"]
[Source "ChessBase"]
[SourceQuality "1"]
[TimeControl "5400+30"]

1. e4 c6 {[%emt 0:01:15]} 2. d4 {[%emt 0:00:00]} d5 {[%emt 0:00:07]} 3. exd5 {[%emt 0:00:33]} cxd5 {[%emt 0:00:11]} 4. Nc3 {[%emt 0:00:31]} g6 {[%emt 0:04:55]} 5. Be3 {[%emt 0:02:16]} Bg7 {[%emt 0:00:58]} 6. Nf3 {[%emt 0:01:15]} Bg4 {[%emt 0:02:56]} 7. Be2 {[%emt 0:01:39]} Nh6 {[%emt 0:02:37]} 8. h3 {[%emt 0:03:21]} Bxf3 {[%emt 0:01:33]} 9. Bxf3 {[%emt 0:00:12]} e6 {[%emt 0:00:47]} 10. g4 {[%emt 0:02:18]} f6 {[%emt 0:00:46]} 11. Qd2 {[%emt 0:02:23]} Nf7 {[%emt 0:00:15]} 12. Qd3 {[%emt 0:02:03]} O-O {[%emt 0:01:02]} 13. Ne2 {[%emt 0:01:46]} e5 {[%emt 0:06:05]} 14. Bg2 {[%emt 0:03:05]} e4 {[%emt 0:02:11]} 15. Qd2 {[%emt 0:00:51]} Qb6 {[%emt 0:04:32]} 16. c3 {[%emt 0:00:36]} Nc6 {[%emt 0:01:04]} 17. Nf4 {[%emt 0:01:04]} Rfe8 {[%emt 0:03:19]} 18. O-O {[%emt 0:01:17]} Rad8 {[%emt 0:02:28]} 19. Kh1 {[%emt 0:02:07]} Na5 {[%emt 0:08:11]} 20. b3 {[%emt 0:00:58]} Qb5 {[%emt 0:14:01]} 21. Rfe1 {[%emt 0:04:34]} Qd7 {[%emt 0:00:38]} 22. c4 {[%emt 0:01:05]} b6 {[%emt 0:07:15]} 23. cxd5 {[%emt 0:00:45]} g5 {[%emt 0:01:11]} 24. Ne6 {[%emt 0:00:38]} Rc8 {[%emt 0:00:45]} 25. Nxg7 {[%emt 0:00:17]} Kxg7 {[%emt 0:00:10]} 26. f3 {[%emt 0:01:00]} exf3 {[%emt 0:05:10]} 27. Bxf3 {[%emt 0:00:10]} Nb7 {[%emt 0:02:27]} 28. Rac1 {[%emt 0:01:40]} Rcd8 {[%emt 0:04:48]} 29. Bf2 {[%emt 0:00:48]} h5 {[%emt 0:00:41]} 30. Rxe8 {[%emt 0:00:33]} Rxe8 {[%emt 0:00:15]} 31. Bg3 {[%emt 0:00:55]} hxg4 {[%emt 0:02:28]} 32. hxg4 {[%emt 0:00:19]} Rh8+ {[%emt 0:00:34]} 33. Kg2 {[%emt 0:00:08]} Nbd6 {[%emt 0:04:11]} 34. Bxd6 {[%emt 0:00:50]} Qxd6 {[%emt 0:00:32]} 35. Rh1 1-0

[Event "XVII Profigaia Open 2017"]
[Site "Gaia"]
[Date "2017.06.17"]
[Round "6"]
[White "Quinta, Daniel"]
[Black "De Souza Monteiro, Marcos Paulo"]
[Result "1-0"]
[ECO "B22"]
[WhiteElo "2064"]
[BlackElo "1961"]
[Annotator "NA"]
[PlyCount "83"]
[EventDate "2017.??.??"]
[EventType "swiss"]
[EventCountry "POR"]
[SourceTitle "playchess.com"]
[Source "ChessBase"]
[SourceQuality "1"]
[TimeControl "5400+30"]

{[%evp 16,83,0,32767,0,-5,36,-7,-4,-10,-18,-9,-7,-1,-6,-10,0,32767,-7,-17,32767,32767,95,95,304,203,192,269,262,250,292,94,130,108,32767,73,81,65,83,79,101,74,88,76,113,112,32767,32767,32767,32767,32767,32767,32767,129,182,122,369,342,324,409,578,567,571,621,655,860,1047,1482,1696,6679]} 1. e4 {[%emt 0:00:00]} c5 {[%emt 0:00:05]} 2. c3 {[%emt 0:00:00]} d5 {[%emt 0:00:06]} 3. exd5 {[%emt 0:00:00]} Qxd5 {[%emt 0:00:05]} 4. d4 {[%emt 0:00:02]} Nf6 {[%emt 0:00:15]} 5. Nf3 {[%emt 0:00:08]} Bg4 {[%emt 0:00:38]} 6. Be2 {[%emt 0:00:07]} e6 {[%emt 0:00:59]} 7. O-O {[%emt 0:00:32]} Nc6 {[%emt 0:00:40]} 8. h3 {[%emt 0:01:21]} Bh5 {[%emt 0:00:41]} 9. Na3 {[%emt 0:05:54]} cxd4 {[%emt 0:18:03]} 10. Nb5 $1 {[%emt 0:00:31] LiveBook: 23 Games} Qd7 {[%emt 0:00:58] B22: Sicilian: 2 c3} (10... Qd8 11. Nfxd4 Bxe2 12. Qxe2 Nxd4 13. Nxd4 a6 14. Rd1 Qc7 15. Bg5 Be7 16. Rd3 O-O 17. Rad1 Rfe8 18. b3 {½-½ (42) Schneider,I (2500)-Voekler,B (2393) Germany 2010}) 11. Bf4 {[%emt 0:00:28]} Nd5 $146 {[%emt 0:01:37]} ({Predecessor:} 11... Rc8 12. Nbxd4 Nxd4 13. Nxd4 Bxe2 14. Qxe2 Bc5 15. Nb3 Nd5 16. Be5 O-O 17. Nxc5 Rxc5 18. Rfd1 {1-0 (29) Thorarensen,A (1686)-Thorisson,B (1057) Reykjavik 2017}) 12. Bg3 {[%emt 0:06:43]} dxc3 {[%emt 0:14:02]} 13. bxc3 {[%emt 0:09:02]} a6 {[%emt 0:05:07]} 14. c4 {[%emt 0:00:38]} axb5 {[%emt 0:01:28]} 15. cxd5 {[%emt 0:00:06]} Qxd5 {[%emt 0:05:18]} 16. Qxd5 {[%emt 0:00:39]} exd5 {[%emt 0:00:08]} 17. Bxb5 {[%emt 0:00:14]} Bxf3 {[%emt 0:01:14]} 18. gxf3 {[%emt 0:00:31]} Ra5 {[%emt 0:03:32]} (18... Bb4 $11 {remains equal.}) 19. a4 {[%emt 0:01:38]} Ra8 $2 {[%emt 0:15:57]} (19... Be7 $16) 20. Rfe1+ {[%emt 0:07:33]} Kd8 {[%emt 0:01:42]} 21. Rad1 {[%emt 0:07:00]} Bb4 {[%emt 0:08:53]} 22. Rxd5+ {[%emt 0:01:30]} Kc8 {[%emt 0:00:12]} 23. Red1 {[%emt 0:11:25]} (23. Rc1 $18 {and White stays clearly on top.}) 23... Re8 {[%emt 0:03:37]} 24. Kf1 {[%emt 0:00:30]} f6 {[%emt 0:03:09]} 25. Rd7 {[%emt 0:05:34]} (25. Rc1 $18) 25... Re1+ {[%emt 0:01:07]} 26. Kg2 {[%emt 0:02:28]} Rxd1 {[%emt 0:01:00]} 27. Rxd1 {[%emt 0:00:02]} Ba5 {[%emt 0:03:58]} 28. Bf4 {[%emt 0:03:48]} Bc7 {[%emt 0:00:33]} 29. Be3 {[%emt 0:00:18]} Ba5 {[%emt 0:01:33]} 30. h4 {[%emt 0:06:23]} Kc7 {[%emt 0:01:02]} 31. Bf4+ {[%emt 0:00:21]} Kc8 {[%emt 0:02:54]} 32. h5 {[%emt 0:00:57]} Bc7 {[%emt 0:00:22]} 33. Be3 {[%emt 0:00:36]} Bb8 {[%emt 0:01:04]} 34. Bd3 {[%emt 0:02:23]} ({White should try} 34. Bc4 $18 Nd8 35. h6 gxh6 36. Bb5) 34... Bc7 {[%emt 0:03:21]} 35. Bxh7 {[%emt 0:04:02]} Rxa4 $2 {[%emt 0:00:19]} (35... Ra5 $16 36. Rh1 Ne7) 36. Bf5+ {[%emt 0:00:53]} Kb8 {[%emt 0:00:13]} 37. Rd7 {[%emt 0:02:15]} Bf4 {[%emt 0:01:43]} 38. Rxg7 {[%emt 0:05:43]} Bxe3 {[%emt 0:00:18]} 39. fxe3 {[%emt 0:00:09]} Rh4 {[%emt 0:00:44]} 40. Bg4 {[%emt 0:01:41]} b5 {[%emt 0:00:52]} 41. Kg3 {[%emt 0:01:09]} Rh1 {[%emt 0:00:08]} 42. Bh3 $18 {[%emt 0:00:45]} 1-0

[Event "XVII Profigaia Open 2017"]
[Site "Gaia"]
[Date "2017.06.17"]
[Round "6"]
[White "Da Silva, Daniel Leite"]
[Black "De Sousa Da Silva, Armando"]
[Result "1/2-1/2"]
[ECO "B01"]
[WhiteElo "2033"]
[BlackElo "1926"]
[Annotator "NA RC"]
[PlyCount "92"]
[EventDate "2017.??.??"]
[EventType "swiss"]
[EventCountry "POR"]
[SourceTitle "playchess.com"]
[Source "ChessBase"]
[SourceQuality "1"]
[TimeControl "5400+30"]

{[%evp 10,92,43,32767,32767,32767,32767,32767,4,-12,0,4,5,-1,0,0,0,-10,11,0,8,-2,37,0,12,-9,32767,12,6,3,7,-29,18,32767,0,-22,22,26,21,32767,32767,32767,32767,32767,32767,32767,37,24,49,0,0,0,31,32767,32767,32767,32767,32767,32767,31,124,94,100,93,94,100,95,62,86,58,156,145,118,127,125,137,170,170,154,138,177,122,125,125,130]} 1. e4 {[%emt 0:00:00]} d5 {[%emt 0:00:03]} 2. exd5 {[%emt 0:00:13]} Qxd5 {[%emt 0:00:05]} 3. Nc3 {[%emt 0:00:31]} Qd6 {[%emt 0:00:04]} 4. Nf3 {[%emt 0:01:19]} Nf6 {[%emt 0:00:20]} 5. d3 {[%emt 0:01:11] B01: Scandinavian Defence} (5. h3 g6 6. Bc4 Bg7 7. d3 O-O 8. O-O a6 9. a4 c5 10. Re1 Nc6 11. Ne4 Nxe4 12. dxe4 Nd4 {1-0 (53) Anton Guijarro,D (2627)-Vakhidov,J (2578) Almaty 2016}) 5... Bg4 {[%emt 0:01:57]} 6. Be2 {[%emt 0:01:36]} Nc6 {[%emt 0:01:43]} 7. Be3 {[%emt 0:02:32]} a6 {[%emt 0:00:37]} 8. Nd2 $146 {[%emt 0:02:26]} ({Predecessor:} 8. Qd2 e5 9. O-O-O Be7 10. h3 Bxf3 11. Bxf3 O-O-O 12. g4 {½-½ (77) Kavon,R (1879)-Petrik,K (2082) Slovakia 2012}) 8... Bxe2 {[%emt 0:08:43]} 9. Qxe2 {[%emt 0:01:14]} Nd4 {[%emt 0:00:09]} 10. Bxd4 {[%emt 0:02:37]} Qxd4 {[%emt 0:00:02]} 11. O-O {[%emt 0:02:14]} e6 {[%emt 0:01:31]} 12. a3 {[%emt 0:00:27]} Be7 {[%emt 0:05:58]} 13. Nb3 {[%emt 0:03:38]} Qh4 {[%emt 0:04:19]} 14. Rae1 {[%emt 0:07:07]} O-O {[%emt 0:12:02]} 15. Ne4 {[%emt 0:05:41]} b6 {[%emt 0:12:10]} 16. Nbd2 {[%emt 0:07:53]} (16. g3 $5 {[%cal Rg3h4]} Qh3 17. d4 $11) 16... Rad8 {[%emt 0:03:18]} 17. Nc3 {[%emt 0:04:21]} Bd6 {[%emt 0:03:06]} 18. g3 {[%emt 0:04:35]} Qh3 {[%emt 0:00:45]} 19. Nc4 {[%emt 0:08:15]} Bc5 {[%emt 0:04:52]} 20. Ne3 {[%emt 0:06:41]} Rd4 {[%emt 0:04:23]} 21. Rd1 {[%emt 0:10:06]} b5 {[%emt 0:07:25]} 22. b4 {[%emt 0:00:58]} Bd6 {[%emt 0:01:57]} (22... Bb6 $15) 23. Qf3 {[%emt 0:07:48]} Rd8 {[%emt 0:10:07]} 24. Ne2 {[%emt 0:03:39]} Rh4 {[%emt 0:00:26]} 25. Qg2 {[%emt 0:00:11]} Qxg2+ {[%emt 0:00:14]} 26. Kxg2 {[%emt 0:00:18]} Rh5 {[%emt 0:00:11]} 27. f4 {[%emt 0:01:35]} Nd5 {[%emt 0:00:39]} 28. Nxd5 {[%emt 0:00:53]} Rxd5 {[%emt 0:01:30]} 29. Nc3 {[%emt 0:00:58]} Rd4 {[%emt 0:00:10]} 30. Ne2 {[%emt 0:00:49]} Rd5 {[%emt 0:00:05]} 31. Nc3 {[%emt 0:00:07]} Rh5 {[%emt 0:00:12]} 32. Rde1 {[%emt 0:02:08]} Kf8 {[%emt 0:02:43]} 33. g4 {[%emt 0:01:44]} Rh6 {[%emt 0:01:40]} 34. Ne4 {[%emt 0:01:31]} g5 {[%emt 0:06:19]} (34... Re8 $14) 35. Nxd6 {[%emt 0:01:09]} Rxd6 {[%emt 0:01:49]} 36. fxg5 {[%emt 0:00:12]} Rg6 {[%emt 0:00:01]} 37. h4 {[%emt 0:00:44]} h6 {[%emt 0:00:16]} 38. Kh3 {[%emt 0:02:52]} hxg5 {[%emt 0:00:10]} 39. h5 {[%emt 0:00:31]} Rh6 {[%emt 0:00:38] [#]} ({Black should play} 39... Rg7) 40. Re5 $1 {[%emt 0:00:26]} f5 {[%emt 0:01:49]} 41. gxf5 {[%emt 0:01:00]} Rxh5+ {[%emt 0:00:31]} 42. Kg4 {[%emt 0:00:15]} Rh2 {[%emt 0:00:48]} 43. fxe6+ {[%emt 0:00:28]} Ke8 {[%emt 0:00:24]} 44. e7 {[%emt 0:01:18]} ({Resist} 44. Rxg5 $6 Rxc2 45. Kf5 Rd5+ 46. Kf6 Rxg5 $14) 44... Rh8 {[%emt 0:00:23]} 45. Kxg5 $16 {[%emt 0:00:20]} Rg8+ {[%emt 0:01:49]} 46. Kf5 {[%emt 0:01:38]} Rg7 {[%emt 0:00:27]} 1/2-1/2